bitfinex-derivatives/quotes_ETHF0:USTF0_20210405
["timestamp","ask_amount","ask_price","bid_price","bid_amount"]
[1617662130915,2.90695,2114.7,2114.6,5.82]
[1617662133317,4.85847938,2114.7,2114.6,5.82]
[1617662138126,2.90695,2114.7,2114.6,5.82]
[1617662138425,4.85939387,2114.7,2114.6,5.82]
[1617662138825,2.90695,2114.7,2114.6,5.82]
[1617662143330,5.69319005,2114.7,2114.6,5.82]
[1617662145736,5.69319005,2114.7,2114.0,5.83]
[1617662146136,1.95559034,2114.3,2114.0,5.83]
[1617662146537,1.95559034,2114.3,2113.4,1.7718]
[1617662146538,1.95559034,2114.3,2114.2,2.90695]
[1617662146738,1.95559034,2114.3,2114.2,8.78695]
[1617662146937,2.09543343,2114.3,2114.2,8.78695]
[1617662149342,0.13984309,2114.3,2114.2,8.78695]
[1617662150043,2.09482813,2114.3,2114.2,8.78695]
[1617662155248,0.13984309,2114.3,2114.2,8.78695]
[1617662156849,2.09497377,2114.3,2114.2,8.78695]
[1617662158050,0.13984309,2114.3,2114.2,8.78695]
[1617662158250,2.93128621,2114.3,2114.2,8.78695]
[1617662158451,32.93128621,2114.3,2114.2,5.88]
[1617662158651,30.13984309,2114.3,2114.2,5.88]
[1617662159050,32.60338432,2114.3,2113.7,5.93]
[1617662159250,35.390755,2114.3,2114.2,5.7]
[1617662159651,35.390755,2114.3,2113.7,5.93]
[1617662159852,35.390755,2114.3,2114.2,5.72]
[1617662160052,32.78737068,2114.3,2114.2,5.72]
[1617662160251,32.78737068,2114.3,2113.7,5.93]
[1617662160452,32.78737068,2114.3,2114.2,5.91]
[1617662160854,32.78737068,2114.3,2113.7,5.77]
[1617662161053,32.78737068,2114.3,2114.2,5.77]
[1617662161452,30.0,2114.2,2113.7,5.73]
[1617662161652,95.279,2114.2,2113.7,5.73]
[1617662161854,1.94911721,2113.9,2113.6,2.90695]
[1617662162052,4.59241721,2113.9,2113.8,5.93]
[1617662162454,4.73230339,2113.9,2113.7,5.8]
[1617662162654,7.63925339,2113.9,2113.8,5.7]
[1617662162853,7.49936721,2113.9,2113.8,5.7]
[1617662163052,7.49936721,2113.9,2113.7,5.9]
[1617662163252,7.49936721,2113.9,2113.8,5.72]
[1617662163654,7.49936721,2113.9,2113.0,55.0127]
[1617662163852,0.88899451,2113.4,2113.2,5.7]
[1617662164053,2.78869451,2113.4,2113.1,5.77]
[1617662164254,76.7692,2113.2,2112.1,65.2437]
[1617662164455,76.7692,2113.2,2112.6,7.71]
[1617662164659,76.7692,2113.2,2113.1,2.90695]
[1617662164858,76.90909249,2113.2,2113.1,8.34695]
[1617662165460,76.90909249,2113.2,2113.1,5.44]
[1617662165957,76.90909249,2113.2,2112.6,2.0]
[1617662165958,76.90909249,2113.2,2112.7,5.73]
[1617662166256,76.90909249,2113.2,2113.1,5.96]
[1617662166658,1.02803783,2113.2,2113.1,2.90695]
[1617662166855,1.02803783,2113.2,2113.1,8.69695]
[1617662167055,0.13989249,2113.2,2113.1,8.69695]
[1617662167457,0.13989249,2113.2,2113.1,10.69695]
[1617662168057,0.13989249,2113.2,2113.1,8.69695]
[1617662168859,0.13989249,2113.2,2113.1,10.69695]
[1617662169258,0.88840124,2113.4,2113.1,10.69695]
[1617662171160,0.88875702,2113.3,2113.1,10.69695]
[1617662171759,0.13989028,2113.4,2113.1,10.69695]
[1617662171760,0.80544159,2113.4,2113.1,10.69695]
[1617662172660,2.90695,2113.2,2113.1,10.69695]
[1617662173260,0.66555131,2113.4,2113.1,10.69695]
[1617662174261,0.66555131,2113.4,2113.1,8.69695]
[1617662174662,2.90695,2113.2,2113.1,8.69695]
[1617662180767,4.92995,2113.2,2113.1,8.69695]
[1617662181571,5.59495352,2113.2,2113.1,8.69695]
[1617662181972,4.92995,2113.2,2113.1,8.69695]
[1617662182868,4.92995,2113.2,2113.1,5.79]
[1617662183267,4.92995,2113.2,2112.2,5.9]
[1617662183469,59.2504,2113.1,2112.2,5.9]
[1617662183668,59.2504,2113.1,2111.9,5.84]
[1617662183869,59.2504,2113.1,2112.0,2.0]
[1617662184270,59.2504,2113.1,2112.1,5.92]
[1617662184670,59.2504,2113.1,2112.2,2.0]
[1617662184869,59.2504,2113.1,2113.0,2.90695]
[1617662185069,59.2504,2113.1,2113.0,8.66695]
[1617662186370,3.57088685,2113.2,2113.0,8.66695]
[1617662186571,2.90695,2113.2,2113.0,8.66695]
[1617662186971,77.62735,2113.2,2113.0,8.66695]
[1617662191377,78.29170051,2113.2,2113.0,8.66695]
[1617662192679,77.62735,2113.2,2113.0,8.66695]
[1617662193980,74.7204,2113.2,2113.0,8.66695]
[1617662194579,74.7204,2113.2,2113.1,2.0]
[1617662194780,0.66516584,2113.5,2113.1,4.3444]
[1617662194983,0.66516584,2113.5,2113.1,10.2744]
[1617662195383,0.66548305,2113.6,2113.1,10.2744]
[1617662195782,0.66571298,2113.7,2113.1,10.2744]
[1617662196082,0.66602998,2113.9,2113.1,10.2744]
[1617662196782,0.66678914,2114.0,2113.1,10.2744]
[1617662196983,0.66678914,2114.0,2113.8,2.90695]
[1617662197183,0.66678914,2114.0,2113.9,5.74]
[1617662197587,0.6670541,2114.1,2113.9,5.74]
[1617662198586,0.6670541,2114.1,2113.9,7.74]
[1617662198786,0.80690458,2114.2,2113.9,7.74]
[1617662199186,0.66703594,2114.2,2113.9,7.74]
[1617662199590,0.6669451,2114.5,2113.9,7.74]
[1617662199992,0.66688477,2114.7,2113.9,7.74]
[1617662200392,0.88916055,2115.0,2113.9,8.6914]
[1617662200994,0.88916055,2115.0,2114.9,2.90695]
[1617662201192,0.46809325,2115.1,2114.9,65.18345]
[1617662201193,1.35724601,2115.1,2114.9,65.18345]
[1617662201594,1.02900691,2115.0,2114.9,65.18345]
[1617662201993,0.88917129,2115.0,2114.9,65.18345]
[1617662203296,0.60793228,2115.1,2114.9,65.18345]
[1617662203795,1.49671272,2115.1,2114.9,65.18345]
[1617662209405,0.13983903,2115.1,2114.9,65.18345]
[1617662209705,0.13982926,2115.0,2114.9,65.18345]
[1617662210006,0.1398284,2115.1,2114.9,65.18345]
[1617662211107,0.1398284,2115.1,2114.9,67.18345]
[1617662211306,1.02860521,2115.1,2114.9,67.18345]
[1617662212206,0.1398284,2115.1,2114.9,67.18345]
[1617662213910,13.0,2115.2,2114.9,67.18345]
[1617662214910,13.0,2115.2,2114.9,13.41755]
[1617662215715,13.0,2115.2,2115.1,66.7172]
[1617662216113,13.0,2115.2,2115.1,72.6572]
[1617662219420,13.0,2115.2,2115.1,74.6572]
[1617662223022,13.0,2115.2,2115.1,75.5888]
[1617662223224,13.0,2115.2,2115.1,74.6572]
[1617662226525,13.0,2115.2,2115.1,72.6572]
[1617662234136,13.0,2115.2,2115.1,5.94]
[1617662234338,13.0,2115.2,2115.0,5.81]
[1617662234737,13.0,2115.2,2115.1,5.84]
[1617662235138,13.0,2115.2,2115.0,7.87]
[1617662235341,13.0,2115.2,2115.1,5.83]
[1617662235941,13.0,2115.2,2115.1,59.7859]
[1617662236140,13.0,2115.2,2115.1,60.7331]
[1617662236841,13.0,2115.2,2115.1,59.7859]
[1617662237041,13.0,2115.2,2115.1,62.4244]
[1617662239045,13.0,2115.2,2115.1,63.3707]
[1617662239244,13.0,2115.2,2115.1,62.4244]
[1617662240545,13.0,2115.2,2115.1,59.7859]
[1617662241348,13.0,2115.2,2115.1,6.7891]
[1617662241747,13.0,2115.2,2115.1,5.83]
[1617662242147,13.0,2115.2,2115.0,5.87]
[1617662242548,13.0,2115.2,2115.1,5.73]
[1617662242748,13.0,2115.2,2114.0,58.6676]
[1617662242749,13.0,2115.2,2115.0,5.82]
[1617662242949,68.9472,2115.1,2115.0,5.82]
[1617662243149,71.85415,2115.1,2114.9,2.90695]
[1617662243349,71.85415,2115.1,2115.0,5.87]
[1617662243751,71.85415,2115.1,2114.9,2.90695]
[1617662243951,71.85415,2115.1,2115.0,5.72]
[1617662245957,2.90695,2115.1,2115.0,5.72]
[1617662246556,85.9144,2115.2,2115.0,5.72]
[1617662247254,88.82135,2115.2,2115.0,5.72]
[1617662249258,88.82135,2115.2,2114.5,8.82695]
[1617662249460,18.54215,2115.2,2114.5,8.82695]
[1617662249659,18.54215,2115.2,2115.1,5.85]
[1617662249858,18.54215,2115.2,2114.6,5.88]
[1617662250258,18.54215,2115.2,2115.1,5.74]
[1617662250458,18.54215,2115.2,2114.6,5.85]
[1617662250658,70.5768,2115.0,2114.6,5.85]
[1617662250858,70.5768,2115.0,2114.5,2.90695]
[1617662251258,70.5768,2115.0,2114.7,5.78]
[1617662251458,70.5768,2115.0,2114.6,5.82]
[1617662251659,70.5768,2115.0,2114.5,2.90695]
[1617662251858,70.5768,2115.0,2114.8,5.73]
[1617662252258,70.5768,2115.0,2114.5,2.90695]
[1617662252459,70.5768,2115.0,2114.9,5.9]
[1617662252858,70.5768,2115.0,2114.6,5.8]
[1617662253058,70.5768,2115.0,2114.9,5.75]
[1617662253260,70.5768,2115.0,2114.9,8.65695]
[1617662253459,70.5768,2115.0,2114.9,2.90695]
[1617662253659,70.5768,2115.0,2114.9,8.79695]
[1617662261168,70.5768,2115.0,2114.9,11.31335]
[1617662266173,70.5768,2115.0,2114.9,8.79695]
[1617662266674,71.24193106,2115.0,2114.9,8.79695]
[1617662268977,71.24193106,2115.0,2114.9,11.39485]
[1617662269178,70.5768,2115.0,2114.9,11.39485]
[1617662270182,70.5768,2115.0,2114.9,8.79695]
[1617662270983,71.24165639,2115.0,2114.9,8.79695]
[1617662272085,71.46446898,2115.0,2114.9,8.79695]
[1617662273089,72.40136898,2115.0,2114.9,8.79695]
[1617662273289,71.46446898,2115.0,2114.9,8.79695]
[1617662275891,72.40556898,2115.0,2114.9,8.79695]
[1617662276491,71.46446898,2115.0,2114.9,8.79695]
[1617662277194,70.5768,2115.0,2114.9,8.79695]
[1617662277395,71.5254,2115.0,2114.9,8.79695]
[1617662277796,70.5768,2115.0,2114.9,8.79695]
[1617662278395,72.5086,2115.0,2114.9,8.79695]
[1617662278996,1.9318,2115.0,2114.9,5.89]
[1617662279198,3.0426298,2115.0,2114.9,5.89]
[1617662279396,1.9318,2115.0,2113.4,70.8686]
[1617662279598,1.9318,2115.0,2114.2,2.90695]
[1617662279797,0.66595679,2114.3,2114.2,2.90695]
[1617662279997,2.91185679,2114.3,2113.4,65.1786]
[1617662280197,56.663,2113.6,2113.4,65.1786]
[1617662280397,58.5772,2113.6,2113.5,5.78]
[1617662281598,58.5772,2113.6,2113.5,8.68695]
[1617662282699,59.46839725,2113.6,2113.5,8.68695]
[1617662283899,57.55419725,2113.6,2113.5,8.68695]
[1617662284099,58.48709725,2113.6,2113.5,8.68695]
[1617662284300,57.55419725,2113.6,2113.5,8.68695]
[1617662284500,56.663,2113.6,2113.5,8.68695]
[1617662285203,57.55430627,2113.6,2113.5,8.68695]
[1617662286005,56.663,2113.6,2113.5,8.68695]
[1617662288709,0.66748906,2113.7,2113.5,8.68695]
[1617662288909,0.66748906,2113.7,2113.5,66.69735]
[1617662289311,0.66772326,2113.9,2113.5,66.69735]
[1617662289712,0.66772326,2113.9,2113.8,2.90695]
[1617662289912,0.66772326,2113.9,2113.8,8.85695]
[1617662291712,0.89063866,2114.0,2113.8,8.85695]
[1617662292112,0.66801423,2113.9,2113.8,8.85695]
[1617662292914,0.89056917,2114.0,2113.8,8.85695]
[1617662293315,1.03044438,2114.0,2113.8,8.85695]
[1617662293715,0.89056917,2114.0,2113.8,8.85695]
[1617662294316,0.88971845,2113.9,2113.8,8.85695]
[1617662294519,3.46031845,2113.9,2113.8,8.85695]
[1617662294718,2.71047991,2113.9,2113.8,8.85695]
[1617662296819,3.82203603,2113.9,2113.8,8.85695]
[1617662297821,2.71047991,2113.9,2113.8,8.85695]
[1617662299225,3.82228356,2113.9,2113.8,8.85695]
[1617662300228,2.71047991,2113.9,2113.8,8.85695]
[1617662301029,3.82089116,2113.9,2113.8,8.85695]
[1617662301829,2.71047991,2113.9,2113.8,8.85695]
[1617662302228,3.64817991,2113.9,2113.8,8.85695]
[1617662302428,2.71047991,2113.9,2113.8,8.85695]
[1617662302829,4.65572949,2113.9,2113.8,8.85695]
[1617662303230,4.65572949,2113.9,2113.8,5.95]
[1617662303431,34.65572949,2113.9,2113.8,5.95]
[1617662303632,34.65572949,2113.9,2112.5,5.85]
[1617662303832,2.0,2113.8,2112.5,5.85]
[1617662304032,94.2693,2113.6,2113.0,2.90695]
[1617662304232,32.0,2113.7,2113.0,3.84125]
[1617662304432,0.8874231,2113.2,2113.1,5.96]
[1617662304632,32.6523231,2113.2,2113.1,5.96]
[1617662304834,31.7649,2113.2,2113.1,5.96]
[1617662305034,32.31364138,2113.2,2113.1,5.96]
[1617662305835,32.31364138,2113.2,2112.5,5.71]
[1617662306035,35.22059138,2113.2,2113.1,5.9]
[1617662306236,34.67185,2113.2,2113.1,5.9]
[1617662306438,34.67185,2113.2,2112.5,5.82]
[1617662306639,34.67185,2113.2,2113.1,5.91]
[1617662306838,35.62585,2113.2,2113.1,5.91]
[1617662307037,67.6482,2113.1,2112.5,5.77]
[1617662307437,67.6482,2113.1,2112.4,66.6492]
[1617662307638,0.548986,2113.0,2112.6,5.77]
[1617662308038,2.90695,2112.7,2112.4,66.6492]
[1617662308238,4.69905,2112.7,2112.4,66.6492]
[1617662308437,0.80543594,2112.6,2112.5,5.93]
[1617662309942,0.80543594,2112.6,2112.5,8.83695]
[1617662310344,4.69905,2112.7,2112.5,8.83695]
[1617662310345,5.3646878,2112.7,2112.5,8.83695]
[1617662310646,0.66557299,2112.6,2112.5,8.83695]
[1617662310848,0.66557299,2112.6,2112.5,9.79655]
[1617662311046,4.69905,2112.7,2112.5,8.83695]
[1617662312050,4.69905,2112.7,2112.5,9.77975]
[1617662312247,4.69905,2112.7,2112.5,8.83695]
[1617662314152,4.69905,2112.7,2112.5,5.93]
[1617662314559,2.90695,2112.7,2112.5,0.9527]
[1617662314756,72.4949,2112.5,2111.3,2.9196]
[1617662314956,2.90695,2112.7,2111.3,2.9196]
[1617662314957,2.90695,2112.7,2111.4,5.74]
[1617662315156,72.5049,2112.0,2111.4,5.74]
[1617662315556,72.5049,2112.0,2111.1,2.0]
[1617662315757,72.5049,2112.0,2111.5,5.73]
[1617662315957,72.5049,2112.0,2111.9,2.90695]
[1617662316359,72.5049,2112.0,2111.9,9.80965]
[1617662316857,2.90695,2112.3,2111.9,9.80965]
[1617662317257,2.90695,2112.3,2111.9,8.86695]
[1617662318058,2.90695,2112.3,2112.2,2.90695]
[1617662318458,2.90695,2112.3,2112.2,8.82695]
[1617662319060,2.90695,2112.3,2112.2,9.76365]
[1617662319460,2.90695,2112.3,2112.2,8.82695]
[1617662319660,0.66346794,2113.4,2112.2,11.27185]
[1617662320060,0.66346794,2113.4,2112.7,2.90695]
[1617662320261,0.66389097,2113.6,2112.7,4.82255]
[1617662320460,0.66389097,2113.6,2112.8,5.81]
[1617662320663,1.60909097,2113.6,2112.8,5.81]
[1617662320863,0.66389097,2113.6,2112.8,5.81]
[1617662321263,2.0,2113.7,2112.8,5.81]
[1617662321463,32.0,2113.7,2112.8,5.81]
[1617662321664,32.56342111,2113.7,2112.8,5.81]
[1617662321868,0.13993768,2113.6,2112.8,5.81]
[1617662322063,2.90695,2112.9,2112.8,5.81]
[1617662322469,3.85065,2112.9,2112.8,6.7424]
[1617662323069,2.90695,2112.9,2112.8,5.81]
[1617662325971,2.90695,2112.9,2112.8,6.752]
[1617662326172,2.90695,2112.9,2112.8,5.81]
[1617662326374,3.86045,2112.9,2112.8,5.81]
[1617662326772,2.90695,2112.9,2112.8,5.81]
[1617662327972,3.84325,2112.9,2112.8,5.81]
[1617662329274,3.84325,2112.9,2112.8,6.7441]
[1617662329474,3.84325,2112.9,2112.8,5.81]
[1617662330674,33.84325,2112.9,2112.8,5.81]
[1617662330874,33.84325,2112.9,2112.8,5.3379]
[1617662331274,33.84325,2112.9,2112.8,0.9412]
[1617662331474,33.84325,2112.9,2112.8,6.7712]
[1617662331475,35.84325,2112.9,2112.8,6.7712]
[1617662331875,35.84325,2112.9,2112.8,5.83]
[1617662332074,35.84325,2112.9,2112.8,5.5314]
[1617662332276,35.84325,2112.9,2112.0,2.90695]
[1617662332277,34.90695,2112.9,2112.0,2.90695]
[1617662332674,34.90695,2112.9,2112.1,5.86]
[1617662333177,61.1764,2112.2,2112.1,5.86]
[1617662334181,64.08335,2112.2,2112.1,5.86]
[1617662338578,65.04285,2112.2,2112.1,6.816]
[1617662338780,64.08335,2112.2,2112.1,5.86]
[1617662339881,2.90695,2112.2,2112.1,5.86]
[1617662340080,32.90695,2112.2,2112.1,5.86]
[1617662340680,32.90695,2112.2,2111.7,5.94]
[1617662341081,33.86585,2112.2,2111.7,5.94]
[1617662341283,32.90695,2112.2,2111.7,5.94]
[1617662341682,32.90695,2112.2,2111.7,6.8732]
[1617662341882,32.90695,2112.2,2111.7,5.94]
[1617662342082,2.90695,2111.8,2111.7,5.94]
[1617662342282,5.57105,2111.8,2111.7,5.94]
[1617662343282,35.57105,2111.8,2110.7,5.86]
[1617662343482,69.3883,2111.0,2110.7,6.8035]
[1617662343682,72.0153,2111.0,2110.7,0.9435]
[1617662343884,72.0153,2111.0,2110.8,5.73]
[1617662344084,72.0153,2111.0,2110.9,2.90695]
[1617662344486,72.0153,2111.0,2110.9,8.67695]
[1617662344683,72.9579,2111.0,2110.9,8.67695]
[1617662344883,72.0153,2111.0,2110.9,8.67695]
[1617662345786,72.965,2111.0,2110.9,9.63315]
[1617662345985,72.0153,2111.0,2110.9,8.67695]
[1617662347187,72.9682,2111.0,2110.9,9.61345]
[1617662347387,72.0153,2111.0,2110.9,8.67695]
[1617662348387,72.9636,2111.0,2110.9,9.61585]
[1617662348786,72.0153,2111.0,2110.9,8.67695]
[1617662350187,72.0153,2111.0,2110.9,9.61745]
[1617662350388,72.0153,2111.0,2110.9,8.67695]
[1617662352088,2.627,2111.0,2110.9,8.67695]
[1617662352288,2.90695,2111.1,2110.9,8.67695]
[1617662353589,3.86285,2111.1,2110.9,8.67695]
[1617662353988,2.90695,2111.1,2110.9,8.67695]
[1617662356490,2.90695,2111.1,2110.9,5.77]
[1617662356890,2.90695,2111.1,266.74,128.90900692]
[1617662356891,2.90695,2111.1,2110.6,5.78]
[1617662357091,2.90695,2111.1,2110.2,5.89]
[1617662357291,2.90695,2111.1,2111.0,5.31]
[1617662357491,2.90695,2111.1,2110.7,5.44]
[1617662357691,76.5494,2110.8,2110.7,5.44]
[1617662357893,76.5494,2110.8,2110.3,5.72]
[1617662358091,76.5494,2110.8,2109.9,3.75]
[1617662358292,76.5494,2110.8,2110.7,8.69695]
[1617662358493,76.5494,2110.8,2110.7,2.90695]
[1617662358893,76.5494,2110.8,2110.7,9.64005]
[1617662359093,76.5494,2110.8,2110.7,8.69695]
[1617662359894,2.90695,2111.1,2110.7,11.22225]
[1617662360093,2.90695,2111.1,2110.7,12.15915]
[1617662360293,2.90695,2111.1,2111.0,2.90695]
[1617662360695,2.90695,2111.1,2111.0,8.58695]
[1617662361096,76.1435,2111.6,2111.0,8.58695]
[1617662362296,79.05045,2111.6,2111.5,2.90695]
[1617662362497,79.05045,2111.6,2111.5,3.85845]
[1617662362696,79.05045,2111.6,2111.5,9.81845]
[1617662363098,79.05045,2111.6,2111.5,8.86695]
[1617662363496,79.05045,2111.6,2111.5,5.96]
[1617662363698,79.05045,2111.6,2110.8,5.75]
[1617662364098,79.05045,2111.6,2111.5,5.73]
[1617662364498,79.05045,2111.6,2111.2,2.90695]
[1617662364698,79.05045,2111.6,2111.5,5.68]
[1617662365098,80.00875,2111.6,2111.3,5.88]
[1617662365298,79.05045,2111.6,2111.2,2.90695]
[1617662365498,2.90695,2111.6,2111.5,5.75]
[1617662365701,74.3694,2111.4,2111.3,5.76]
[1617662365899,74.3694,2111.4,2111.2,2.90695]
[1617662366301,75.3264,2111.4,2111.3,5.79]
[1617662366500,74.3694,2111.4,2111.3,6.7343]
[1617662366700,74.3694,2111.4,2111.3,5.79]
[1617662368401,77.27635,2111.4,2111.3,5.79]
[1617662369403,78.21225,2111.4,2111.3,6.7442]
[1617662369603,77.27635,2111.4,2111.3,6.7442]
[1617662370002,77.27635,2111.4,2111.3,5.79]
[1617662371803,77.27635,2111.4,2111.3,6.7461]
[1617662372204,77.27635,2111.4,2111.3,5.79]
[1617662373003,80.10435,2111.4,2111.3,5.79]
[1617662373304,81.05585,2111.4,2111.3,6.7459]
[1617662374002,5.73495,2111.4,2111.3,6.7459]
[1617662374603,5.73495,2111.4,2111.3,5.79]
[1617662374803,5.73495,2111.4,2111.0,5.95]
[1617662375204,2.90695,2111.4,2111.3,5.72]
[1617662375603,66.9224,2111.1,2111.0,5.82]
[1617662376006,66.9224,2111.1,2110.9,2.90695]
[1617662376203,66.9224,2111.1,2111.0,5.89]
[1617662376703,66.9224,2111.1,2111.0,6.8254]
[1617662377103,66.9224,2111.1,2111.0,5.89]
[1617662378404,69.82935,2111.1,2111.0,5.89]
[1617662378802,70.77055,2111.1,2111.0,5.89]
[1617662379003,69.82935,2111.1,2111.0,5.89]
[1617662379203,69.82935,2111.1,2111.0,6.8511]
[1617662379803,69.82935,2111.1,2111.0,5.89]
[1617662380905,69.82935,2111.1,2111.0,6.8364]
[1617662381107,70.77255,2111.1,2111.0,6.8364]
[1617662382107,69.82935,2111.1,2111.0,5.89]
[1617662383111,70.76335,2111.1,2111.0,5.89]
[1617662383314,69.82935,2111.1,2111.0,5.89]
[1617662385113,2.90695,2111.1,2111.0,5.89]
[1617662386515,2.90695,2111.1,2110.6,2.90695]
[1617662386715,2.90695,2111.1,2111.0,5.82]
[1617662387115,2.90695,2111.1,2110.6,2.90695]
[1617662387515,5.46295,2111.1,2110.7,5.72]
[1617662388317,2.90695,2110.8,2110.7,5.72]
[1617662390520,32.90695,2110.8,2110.7,5.72]
[1617662390721,2.90695,2110.8,2110.7,5.72]
[1617662392122,32.90695,2110.8,2110.7,5.72]
[1617662392523,2.90695,2110.8,2110.7,5.72]
[1617662394124,3.85235,2110.8,2110.7,5.72]
[1617662394325,3.85235,2110.8,2110.7,6.6659]
[1617662395724,2.90695,2110.8,2110.7,5.72]
[1617662404934,32.90695,2110.8,2110.7,5.72]
[1617662406139,33.57186179,2110.8,2110.7,5.72]
[1617662407039,56.7761,2110.7,2109.4,5.91]
[1617662407240,86.7761,2110.7,2109.3,65.8656]
[1617662407641,86.7761,2110.7,2109.5,5.89]
[1617662407841,86.7761,2110.7,2109.4,5.89]
[1617662408041,86.7761,2110.7,2108.3,2.0]
[1617662408042,30.0,2110.7,2108.3,2.0]
[1617662408240,68.4154,2110.5,2109.6,5.85]
[1617662408440,68.4154,2110.5,2110.2,2.90695]
[1617662408441,70.3239,2110.5,2110.2,2.90695]
[1617662408641,1.9085,2110.5,2110.2,2.90695]
[1617662408842,1.9085,2110.5,2110.3,2.91]
[1617662410444,2.90695,2110.4,2110.3,2.91]
[1617662412549,3.57329678,2110.4,2110.3,2.91]
[1617662414748,2.90695,2110.4,2110.3,2.91]
[1617662419659,56.60165,2110.4,2110.3,2.91]
[1617662420457,57.26851045,2110.4,2110.3,2.91]
[1617662422161,59.43771045,2110.4,2110.3,2.91]
[1617662422759,58.77085,2110.4,2110.3,2.91]
[1617662423360,56.60165,2110.4,2110.3,2.91]
[1617662423760,1.11440974,2110.5,2110.3,2.91]
[1617662423960,0.89111159,2110.4,2110.3,2.91]
[1617662424160,0.89147813,2110.5,2110.3,2.91]
[1617662424763,0.66886291,2110.4,2110.3,2.91]
[1617662425166,0.66892338,2110.5,2110.3,2.91]
[1617662425363,0.66892338,2110.5,2110.3,4.91]
[1617662425564,0.66920121,2110.6,2110.3,4.91]
[1617662425963,0.66939463,2110.8,2110.3,4.91]
[1617662426364,1.95519016,2111.4,2110.3,4.91]
[1617662426365,0.66913482,2110.9,2110.5,62.4698]
[1617662426566,0.66913482,2110.9,2110.6,2.0]
[1617662426766,0.66913482,2110.9,2110.8,4.90695]
[1617662426967,0.66932876,2111.1,2110.8,4.90695]
[1617662427167,0.66932876,2111.1,2111.0,2.0]
[1617662427370,0.66920504,2111.4,2111.0,10.3472]
[1617662427769,0.66910564,2111.8,2111.0,10.3472]
[1617662427969,0.66908405,2111.9,2111.0,10.3472]
[1617662428769,0.66906731,2112.0,2111.9,2.0]
[1617662428968,0.66906731,2112.0,2111.9,10.1363]
[1617662429169,0.89209245,2112.3,2112.1,1.33093066]
[1617662429368,0.89209245,2112.3,2112.1,7.01093066]
[1617662429768,0.89195788,2112.5,2112.1,1.33093066]
[1617662430169,0.89195788,2112.5,2112.2,5.69]
[1617662430368,0.89195788,2112.5,2112.3,1.33093066]
[1617662430771,0.89191567,2112.7,2112.4,8.80695]
[1617662430970,0.89191567,2112.7,2112.5,1.33093066]
[1617662431170,0.89183877,2112.8,2112.5,1.33093066]
[1617662431369,0.89183877,2112.8,2112.5,54.94733066]
[1617662431571,0.89185534,2112.9,2112.7,1.33093066]
[1617662431770,0.89185534,2112.9,2112.6,5.91]
[1617662431969,0.89186062,2112.8,2112.4,5.42975]
[1617662432169,59.173,2112.7,2112.4,5.42975]
[1617662432370,59.173,2112.7,2112.6,5.71]
[1617662432769,1.27950762,2112.7,2112.6,2.0]
[1617662432969,1.27950762,2112.7,2112.6,7.74]
[1617662433169,0.89182504,2112.9,2112.6,7.74]
[1617662433469,0.89189356,2112.8,2112.6,7.74]
[1617662434670,0.89184473,2113.0,2112.6,7.74]
[1617662434871,0.89184473,2113.0,2112.8,2.0]
[1617662435072,0.89183645,2112.9,2112.8,2.0]
[1617662435271,0.89183645,2112.9,2112.8,7.89]
[1617662435772,1.95371089,2113.3,2112.8,7.89]
[1617662435773,1.1148556,2113.0,2112.8,5.89]
[1617662436773,1.1148556,2113.0,2112.8,8.0104]
[1617662436972,2.90695,2113.7,2112.8,8.0104]
[1617662437773,3.86365,2113.7,2112.8,5.89]
[1617662437974,2.90695,2113.7,2112.8,5.89]
[1617662438374,3.79496399,2113.7,2112.8,5.89]
[1617662438773,0.88801399,2113.7,2112.8,5.89]
[1617662439174,0.88801399,2113.7,2110.8,63.4576]
[1617662439175,67.4005,2112.8,2110.9,5.68]
[1617662439374,69.4965,2112.8,2110.9,5.68]
[1617662439574,69.4965,2112.8,2110.8,63.4576]
[1617662439774,69.4965,2112.8,2111.0,5.69]
[1617662440175,69.4965,2112.8,2111.1,2.0]
[1617662440575,67.4005,2112.8,2111.1,3.883]
[1617662440778,67.4005,2112.8,2112.7,2.90695]
[1617662441175,67.4005,2112.8,2112.7,8.75695]
[1617662442177,67.4005,2112.8,2112.7,10.84445]
[1617662445185,67.4005,2112.8,2112.7,8.75695]
[1617662446478,69.2028,2112.8,2112.7,8.75695]
[1617662446878,4.70925,2112.8,2112.7,5.85]
[1617662447278,71.9079,2112.7,2111.9,0.9512]
[1617662447479,71.9079,2112.7,2111.3,0.9501]
[1617662447878,71.9079,2112.7,2112.0,3.39]
[1617662448081,71.9079,2112.7,2111.4,7.89]
[1617662448279,71.9079,2112.7,2111.4,5.89]
[1617662448479,71.9079,2112.7,2111.3,0.9501]
[1617662448480,71.9079,2112.7,2112.1,5.96]
[1617662448679,101.9079,2112.7,2112.1,0.9406]
[1617662448880,2.90695,2112.2,2112.1,0.9406]
[1617662449080,5.37265,2112.2,2112.1,0.9406]
[1617662449281,5.37265,2112.2,2112.1,6.6606]
[1617662449981,6.32455,2112.2,2112.1,6.6606]
[1617662450182,3.85885,2112.2,2112.1,5.72]
[1617662450583,2.90695,2112.2,2112.0,5.83]
[1617662450982,2.90695,2112.2,2112.1,5.96]
[1617662451182,2.90695,2112.2,2112.0,5.91]